Cogmind - Beta 14 @@@ ROGUE MODE // 2024.10.02 @ 12:41:37 Player: Awoo-Bot Result: Destroyed by L0-UKX(R) with Subdweller Machine Gun Performance ------------- Evolutions (0) 0 Regions Visited (2) 400 Robots Destroyed (21) 105 Value Destroyed (438) 438 Prototype IDs (0) 0 Alien Tech Used (0) 0 Bonus (0) 0 TOTAL SCORE: 943 Bonus ------- None Cogmind --------- Core Integrity 0/250 Matter 174/300 Energy 46/125 System Corruption 0% Temperature Cool (0) Movement Treading (240) Ox1 Location -10/Subcaves Parts ------- > --- POWER (1) -------- Light Ion Engine > --- PROPULSION (2) --- Light Treads Wheel > --- UTILITY (2) ------ Large Storage Unit Hacking Suite > --- WEAPON (2) ------- Light Cannon > --- INVENTORY (15) --- Medium Laser Datajack Peak State ------------ > --- POWER ------------ Ion Engine > --- PROPULSION ------- Light Treads Wheel > --- UTILITY ---------- Large Storage Unit Seismic Detector > --- WEAPON ----------- Assault Rifle Light Cannon > --- INVENTORY -------- Light Ion Engine Light Treads Wheel Medium Storage Unit Hacking Suite Medium Laser Medium Laser Grenade Launcher [Rating: 8] Favorites ----------- Power Ion Engine Engine Ion Engine Propulsion Wheel Treads Light Treads Wheel Wheel Utility Seismic Detector Device Seismic Detector Storage Large Storage Unit Hackware Hacking Suite Weapon Assault Rifle Energy Gun Medium Laser Ballistic Gun Assault Rifle Ballistic Cannon Light Cannon Launcher Grenade Launcher Build | -11 -10 -10 ------- Run | Yrd Mat Sub Slots Evolved . | . . . Power . | . . . Propulsion . | . . . Utility . | . . . Weapon . | . . . Parts Attached 23 | 7 9 7 Power 3 | 1 1 1 Engine 3 | 1 1 1 Core . | . . . Reactor . | . . . Propulsion 5 | 2 1 2 Treads 2 | 1 . 1 Leg . | . . . Wheel 3 | 1 1 1 Hover . | . . . Flight . | . . . Utility 5 | 2 2 1 Device 1 | 1 . . Storage 3 | 1 2 . Processor . | . . . Hackware 1 | . . 1 Protection . | . . . Artifact . | . . . Weapon 10 | 2 5 3 Energy Gun 2 | 1 . 1 Energy Cannon . | . . . Ballistic Gun 3 | 1 2 . Ballistic Cannon 2 | . 1 1 Launcher 3 | . 2 1 Special Weapon . | . . . Impact Weapon . | . . . Slashing Weapon . | . . . Piercing Weapon . | . . . Special Melee Weapon . | . . . Unidentified Prototypes . | . . . Parts Lost 9 | . 1 8 Power 2 | . 1 1 Propulsion 2 | . . 2 Utility 1 | . . 1 Weapon 4 | . . 4 Highest Loss Streak 8 | . 1 8 To Critical Strikes . | . . . Average Slot Usage (%) 97 | . 99 82 Engine 13 | . 13 11 Treads 13 | . 14 8 Wheel 13 | . 14 9 Device 13 | . 14 11 Storage 14 | . 14 14 Energy Gun 4 | . 4 4 Ballistic Gun 12 | . 13 9 Ballistic Cannon 9 | . 9 11 Peak Build Rating 8 | 7 8 8 Average Rating 7 | 5 7 6 On Entrance 5 | . 7 8 Naked Turns . | . . . Heaviest Build 31 | 15 31 29 Greatest Support 10 | 10 10 10 Greatest Overweight (x) 3 | 1 3 2 Average Overweight (x) 1 | . 1 2 Largest Inventory Capacity 15 | 8 15 15 Average Capacity 11 | 7 11 15 Most Carried 9 | 4 9 9 Average Carried 6 | 2 6 8 Final Capacity 15 | 8 15 15 Final Carried 9 | 4 9 2 Class Distribution -------------------- 100% | Mutant Dominant Class ---------------- Mutant | -10/Materials Mutant | -10/Subcaves Resources | -11 -10 -10 ----------- Run | Yrd Mat Sub Matter Collected 552 | 145 407 . Remotely . | . . . Salvage Created 429 | 30 399 . Parts 43 | 3 40 . Haulers Intercepted . | . . . Recyclers Shooed . | . . . Parts Field Recycled . | . . . Retrieved Matter . | . . . Parts Self-Destructed . | . . . Prevented . | . . . Kills | -11 -10 -10 ------- Run | Yrd Mat Sub Combat Hostiles Destroyed 17 | . 17 . Guns 8 | . 8 . Cannons 3 | . 3 . AOE 6 | . 6 . Classes Destroyed 6 | 1 5 . Worker 1 | . 1 . Tunneler 1 | 1 . . Operator 1 | . 1 . Watcher 1 | . 1 . Swarmer 9 | . 9 . Grunt 8 | . 8 . Best Kill Streak 4 | 1 4 . Combat Bots Only 3 | . 3 . Max Kills in Single Turn 2 | 1 2 . Gunslinging . | . . . Exploded 2 | . 2 . Melee . | . . . Uniques/NPCs Destroyed . | . . . Combat | -11 -10 -10 -------- Run | Yrd Mat Sub Hostile Shots Fired 92 | . 43 49 Missed 24 | . 13 11 Damage Taken 1099 | . 308 791 Core 264 | . 41 223 Absorbed by Shields . | . . . Core Remaining (%) 100 | 100 . . Volleys Fired 53 | 2 35 16 Largest 2 | 2 2 2 Hottest 100 | 70 70 100 Shots Fired 95 | 4 63 28 Gun 63 | 4 46 13 Cannon 23 | . 11 12 Launcher 9 | . 6 3 Special . | . . . Kinetic 60 | 2 40 18 Thermal 26 | 2 17 7 Explosive 9 | . 6 3 Electromagnetic . | . . . Robot Hit Streak 9 | 1 7 9 Robot Miss Streak 5 | 1 5 1 Penetration Max . | . . . Secondary Targets . | . . . Shots Hit Robots 50 | 2 32 16 Core Hits 33 | 1 29 3 Critical Kills . | . . . Critical Parts Destroyed . | . . . Critical Strikes 1 | . . 1 Burn 1 | . . 1 Melee Attacks . | . . . Impact . | . . . Slashing . | . . . Piercing . | . . . Sneak Attacks . | . . . Combat Hostiles . | . . . Follow-up Attacks . | . . . Damage Inflicted 1188 | 26 833 329 Guns 411 | 26 282 103 Cannons 291 | . 123 168 Explosions 486 | . 428 58 Melee . | . . . Ramming . | . . . Kinetic 595 | 26 342 227 Thermal 107 | . 63 44 Explosive 486 | . 428 58 Electromagnetic . | . . . Impact . | . . . Slashing . | . . . Piercing . | . . . Highest Corruption . | . . . Average Corruption . | . . . Corruption Purged . | . . . Corruption Blocked . | . . . Overload Shots . | . . . Overflow Damage . | . . . Projectiles . | . . . Explosions . | . . . Melee . | . . . Knockbacks 3 | . 1 2 Impact . | . . . Kinetic 3 | . 1 2 Secondary . | . . . Self-Inflicted Damage 7 | . . 7 Shots 1 | . . 1 Rammed . | . . . Targets Rammed . | . . . Kicked . | . . . Crushed . | . . . Highest Temperature 47 | 18 47 . Average Temperature 13 | 10 14 . Received Heat Transfer 93 | . 93 . Siege Activations . | . . . Robots Corrupted . | . . . Combat Hostiles . | . . . Parts Fried . | . . . Impact Corruptions . | . . . Robots Melted . | . . . Combat Hostiles . | . . . Parts Melted 1 | . 1 . Heat Transferred 370 | . 185 185 Parts Sabotaged . | . . . Parts Stolen . | . . . Parts Stripped . | . . . Power Chain Reactions . | . . . Alert | -11 -10 -10 ------- Run | Yrd Mat Sub Peak Influence 396 | 5 396 . Initial 3 | . 3 . Average 158 | 2 170 . Maximum Alert Level 1 | . 1 . Low Security (%) 58 | 100 55 . Level 1 41 | . 44 . Level 2 . | . . . Level 3 . | . . . Level 4 . | . . . Level 5 . | . . . High Security . | . . . Max Security . | . . . Squads Dispatched 2 | . 2 . Investigation 1 | . 1 . Extermination . | . . . Reinforcement 1 | . 1 . Assault . | . . . Garrison . | . . . Intercept . | . . . Searches Triggered . | . . . Construction Impeded . | . . . Haulers Reinforced . | . . . Active Scanning Responses . | . . . Cargo Convoy Interrupts . | . . . Stealth | -11 -10 -10 --------- Run | Yrd Mat Sub Distress Signals 2 | . 2 . Communications Jammed . | . . . Distress Signals . | . . . Times Spotted 30 | . 28 2 Peak Tracking Total 6 | . 6 2 Tactical Retreats 2 | . 2 . Traps | -11 -10 -10 ------- Run | Yrd Mat Sub Traps Triggered 2 | . 2 . Indirectly . | . . . Trap Hack Attempts . | . . . Triggered . | . . . Disarmed . | . . . Reprogrammed . | . . . Reused . | . . . Traps Extracted . | . . . Installed . | . . . Triggered . | . . . Machines | -11 -10 -10 ---------- Run | Yrd Mat Sub Machines Disabled 1 | . 1 . Max in Single Turn 1 | . 1 . Machines Repaired . | . . . Machines Dismantled . | . . . Machines Sabotaged . | . . . Overloaded Fab Kills . | . . . Hacking | -11 -10 -10 --------- Run | Yrd Mat Sub Machines Accessed 4 | . 4 . Terminals 4 | . 4 . Fabricators . | . . . Repair Stations . | . . . Recycling Units . | . . . Scanalyzers . | . . . Garrison Access . | . . . Total Hacks 14 | . 14 . Successful 9 | . 9 . Failed 5 | . 5 . Catastrophic . | . . . Database Lockouts . | . . . Manual 14 | . 14 . Terminals 14 | . 14 . Fabricators . | . . . Repair Stations . | . . . Recycling Units . | . . . Scanalyzers . | . . . Garrison Access . | . . . Terminal Hacks 1 | . 1 . Unreport Threat 1 | . 1 . Fabricator Hacks . | . . . Repair Station Hacks . | . . . Recycling Unit Hacks . | . . . Scanalyzer . | . . . Garrison Access Hacks . | . . . Unauthorized Hacks 7 | . 7 . Terminals 7 | . 7 . Botnet 4 | . 4 . Skim 3 | . 3 . Fabricators . | . . . Repair Stations . | . . . Recycling Units . | . . . Scanalyzers . | . . . Garrison Access . | . . . Data Cores Recovered . | . . . Used . | . . . Hacking Detections 3 | . 3 . Full Trace Events . | . . . Feedback Events . | . . . Feedback Blocked . | . . . Robot Schematics Acquired . | . . . Robots Built . | . . . Authchips . | . . . Time . | . . . Total Robot Build Rating . | . . . Part Schematics Acquired . | . . . Parts Built . | . . . Authchips . | . . . Time . | . . . Total Part Build Rating . | . . . Parts Repaired . | . . . Time . | . . . Parts Recycled . | . . . Recycled Matter . | . . . Retrieved Matter . | . . . Retrieved Components . | . . . Parts Scanalyzed . | . . . Part Schematics Acquired . | . . . Parts Damaged . | . . . Bothacking | -11 -10 -10 ------------ Run | Yrd Mat Sub Used RIF Installer . | . . . Robots Hacked . | . . . Non-combat . | . . . Combat . | . . . Robot Hacks Applied . | . . . Relay Couplers Released . | . . . Fabnet Peak Effective % . | . . . Robots Rewired . | . . . Allies Hacked . | . . . Hacks Repelled . | . . . Allies | -11 -10 -10 -------- Run | Yrd Mat Sub Total Allies . | . . . Largest Group . | . . . Highest-Rated Group . | . . . Highest-Rated Ally . | . . . Total Orders . | . . . Ally Attacks . | . . . Total Damage . | . . . Kills . | . . . Allies Corrupted . | . . . Allies Melted . | . . . Intel | -11 -10 -10 ------- Run | Yrd Mat Sub Robot Analysis Total . | . . . Derelict Logs Recovered . | . . . Drone Launches . | . . . Drone Recoveries . | . . . Exploration | -11 -10 -10 ------------- Run | Yrd Mat Sub Turns Passed 967 | 62 806 99 Spaces Moved 718 | 46 627 45 Core 1 | 1 . . Treads . | . . . Legs . | . . . Wheels 717 | 45 627 45 Hover . | . . . Flight . | . . . Fastest Speed 50 | 50 95 110 Average Speed 105 | 91 106 110 Slowest Speed 125 | 95 125 110 Overloaded Moves . | . . . Propulsion Burnouts . | . . . Robots Hopped . | . . . Cave-ins Triggered . | . . . Exploration Rate (%) 30 | 3 83 6 Regions Visited 2 Branch Regions 1 Pre-discovered Areas . | . . . Known Exits Taken . | . . . Unknown Exits Taken 2 | 1 1 . Scrap Searched . | . . . Spaces Dug . | . . . Terrain Destroyed 38 | . 26 12 Melee . | . . . Projectile . | . . . AOE 38 | . 26 12 Terrain Rammed . | . . . Walls Destroyed . | . . . Machines Disabled . | . . . Actions | -11 -10 -10 --------- Run | Yrd Mat Sub Total 825 | 58 699 68 Wait 18 | . 18 . Move 716 | 45 626 45 Hop . | . . . Pick Up 10 | 4 6 . Fast Attach 8 | 7 1 . Attach 8 | . 1 7 Detach 1 | . 1 . Swap 7 | . 7 . Drop 4 | . 4 . Fire 53 | 2 35 16 Melee . | . . . Ram . | . . . Kick . | . . . Crush . | . . . Escape Stasis . | . . . Rewire . | . . . Trap . | . . . Miscellaneous . | . . . Route ------- -11/Scrapyard -10/Materials (discovered 4 exits: [*Mat x3] / [*Sub]) -10/Subcaves History --------- Turn | Location | Event 20 | -11/Scrapyard | Discovered new exit (range 15) 63 | -11/Scrapyard | Entered Materials 184 | -10/Materials | Discovered new exit (range 15) 312 | -10/Materials | Build established: Mutant 317 | -10/Materials | Discovered new exit (range 13) 483 | -10/Materials | Discovered new exit (range 8) 563 | -10/Materials | Derelicts attacked the area 851 | -10/Materials | Discovered new exit (range 10) 869 | -10/Materials | Entered Subcaves 888 | -10/Subcaves | A swath of the cavern ceiling suddenly collapsed 942 | -10/Subcaves | Core integrity fell below 50% 954 | -10/Subcaves | Core integrity fell below 20% 968 | -10/Subcaves | Destroyed by L0-UKX(R) with Subdweller Machine Gun Last Messages --------------- 00854_ W-16 Scout destroyed. 00855_ K-01 Serf collects debris. 00859_ Acquired 7 matter. 00861_ Acquired Lgt. Ion Engine. LOCATION=UNKNOWN AMBIENT_HEAT=-10 GOAL=ESCAPE A swath of the cavern ceiling suddenly collapses. 00920_ HT-G4A(R) knocked back. 00925_ Lgt. Treads destroyed. 00926_ HT-G4A(R) knocked back. 00934_ Assault Rifle destroyed. 00939_ Wheel destroyed. 00945_ Seismic Detector destroyed. 00947_ Lgt. Ion Engine destroyed. 00948_ Lgt. Cannon destroyed. 00956_ Grenade Launcher destroyed. 00959_ L0-UKX(R) suffers critical hit (Burn). 00961_ Particle Gun destroyed. 00966_ Destroyed Scrap Shield. Map ----- +----------------------------------------------------+ | ?????????????????????????????????????????????????? | | ?????????????????????????????????????????????????? | | ?????????????????????????????????????????????????? | | ?????????????????????????????????????????????????? | | ?????????????????????????????????????????????????? | | ?????????????????????????????????????????????????? | | ?????????????????????????????????????????????????? | | ?????????????????????????????????????????????????? | | ?????????????????????????????????????????????????? | | ????????????????????? ??????????????????????????? | | ???????????????????? ??????????????????????????? | | ???????????????????? ??????????????????????????? | | ???????????????????? ??????????????????????????? | | ???????????????????? ??????????????????????????? | | ????????????????????? ??????????????????????????? | | ????????????????????? ###???????????????????????? | | ????????????????????? ??????????? #??????????? | | ?????????????????????# ????????? ???????????? | | ????????????????????## ????????? ???????????? | | ????????????????????# ???###?? """"" ?????????? | | ??????????????????### ???# ### " " ?????????? | | ??????????????????# ???# " " ?????????? | | ???????????????????# #???# " " ????????? | | ???????????????????# ##### """""??????????? | | ????????????????????# ## R ""???????? | | ????????????????????## R @ "" ????? | | ?????????????????????#% " "" ???? | | ????????????????????# %%% # " ####"?"" #??? | | ?????????????????# ### ""###??#""" #??? | | ?????????????????## ### "#????""" #??? | | ??????????????????# #?## #???"" " #??? | | ??????????????????### ##?# ##????""" #???? | | ???????????????????## ???# "#????"" # #?????? | | ??????????????????## ???## ""######"" ##????? | | ?????????????????## #?## """# # """ #????? | | ?????????????????# " ## " "#" ##????? | | ?????????????????## "## # " #????? | | ??????????????????#;###""" ##### ##???? | | ??????????????????## #""### ### #??## #???? | | ??????????????????# #""" #####?###??# #???? | | ???????????????? #"" ???????????# #???? | | ??????????????# # #""# ???????????## ##???? | | ????????????????###### ????????????## #????? | | ????????????????????# ??????????????## ##????? | | ????????????????????# ????????????????####?????? | | ???????????????????? ?????????????????????????? | | ??????????????????? #?????????????????????????? | | ??????????????????#####??????????????????????????? | | ?????????????????????????????????????????????????? | | ?????????????????????????????????????????????????? | +----------------------------------------------------+ Best States ------------- Heat Dissipation 25 Energy Generation 10 Energy Capacity 250 Matter Stores 300 Matter Capacity 300 Sight Range 16 Terrain Scan Density 10 Evasion (%) 44 Item Schematics ----------------- None Robot Schematics ------------------ None Fabricated ------------ Nothing Alien Tech Used ----------------- None Achievements -------------- None Challenges ------------ None Game ------ Seed GravmagHybridExtrapolator Manual? 0 Play Time 00:09:14 Cumulative 73.5 hours Start 2024.10.02 @ 12:33:24 End 2024.10.02 @ 12:41:37 Sessions 1 Manual Loads 0 Difficulty Rogue Special Mode None Game No. 121 Rogue 93 Adventurer 28 Explorer 0 Win Type - Total 0 Types 0/0/0/0/0/0/0/0/0 Lore% 15 Gallery% 29 Achievement% 31 Wizard Run 0 Options --------- Layout 0 ASCII 0 Keyboard 0 Movement Mouse Keybinds 0 Fullscreen 1 Font 36/Smallcaps Map View 76x50 Zoom Use 0% Tactical HUD 1 Map Filters NONE Filters NONE Steam 1 RUN: ec21d62e-4e64-4aa0-b1d2-bf88670d8b9d